Workbook

Sheet Лист1
N1: Приложение 9 к пояснительной записке 2024 года
A2: Параметры финансового обеспечения реализации государственных программ Ленинградской области в 2022-2025 годах
A4: Наименование | B4: 2023 год уточненный план на 01.08.2023 | E4: 2024 год | J4: 2025 год | N4: 2026 год
B5: Всего | C5: в том числе за счет средств областного бюджета | D5: уд. вес, % | E5: Проект | F5: в том числе за счет средств областного бюджета | H5: уд. вес, % | I5: темп роста, % | J5: Проект | K5: в том числе за счет средств областного бюджета | M5: уд. вес, % | N5: Проект | O5: в том числе за счет средств областного бюджета | Q5: уд. вес, %
F6: тыс. рублей | G6: Темп роста, % | K6: тыс. рублей | L6: Темп роста, % | O6: тыс. рублей | P6: Темп роста, %
A7: 1 | B7: 2 | C7: 3 | D7: 4 | E7: 5 | F7: 6 | G7: 7=6/3 | H7: 8 | I7: 9=5/2 | J7: 10 | K7: 11 | L7: 12=11/6 | M7: 13 | N7: 14 | O7: 15 | P7: 16=15/11 | Q7: 17
A8: Расходы областного бюджета, всего | B8: =B10+B29 -> 201591651.2 | C8: =C10+C29 -> 181057475.6 | D8: =SUM(D11:D29) -> 100 | E8: =E10+E29 -> 223651055.7 | F8: =F10+F29 -> 207769422.9 | G8: =F8/C8*100 -> 114.7532971 | H8: =SUM(H11:H29) -> 100 | I8: =E8/B8*100 -> 110.9426181 | J8: =J10+J29 -> 209076238.4 | K8: =K10+K29 -> 194041565.3 | L8: =K8/F8*100 -> 93.39274403 | M8: =SUM(M11:M29) -> 100 | N8: =N10+N29 -> 187749261.4 | O8: =O10+O29 -> 187749261.4 | P8: =O8/K8*100 -> 96.75723916 | Q8: =SUM(Q11:Q29) -> 100
A9: из них:
A10: Расходы на реализацию государственных программ Ленинградской области, в том числе: | B10: =SUM(B11:B28) -> 184984571.2 | C10: =SUM(C11:C28) -> 166872253.3 | D10: =B10/$B$8*100 -> 91.76201995 | E10: =SUM(E11:E28) -> 199262970 | F10: =SUM(F11:F28) -> 184062847 | G10: =F10/C10*100 -> 110.3016489 | H10: =E10/$E$8*100 -> 89.09547481 | I10: =E10/B10*100 -> 107.7186971 | J10: =SUM(J11:J28) -> 191437018.3 | K10: =SUM(K11:K28) -> 177089819.6 | L10: =K10/F10*100 -> 96.21160516 | M10: =J10/$J$8*100 -> 91.5632593 | N10: =SUM(N11:N28) -> 168925475 | O10: =SUM(O11:O28) -> 168925475 | P10: =O10/K10*100 -> 95.38971545 | Q10: =N10/$N$8*100 -> 89.97397579
A11: Развитие здравоохранения в Ленинградской области | B11: 27692336 | C11: 25730606.2 | D11: =B11/$B$8*100 -> 13.73684666 | E11: 30688265.2 | F11: 28657050 | G11: =F11/C11*100 -> 111.3733962 | H11: =E11/$E$8*100 -> 13.72149356 | I11: =E11/B11*100 -> 110.8186222 | J11: 31723790.2 | K11: 29542063.6 | L11: =K11/F11*100 -> 103.0882928 | M11: =J11/$J$8*100 -> 15.17331211 | N11: 28007895.2 | O11: 28007895.2 | P11: =O11/K11*100 -> 94.80683401 | Q11: =N11/$N$8*100 -> 14.91771259
A12: Современное образование Ленинградской области | B12: 43105608 | C12: 41027233 | D12: =B12/$B$8*100 -> 21.38263551 | E12: 50928404.9 | F12: 48549592.6 | G12: =F12/C12*100 -> 118.33504 | H12: 22.77136799 | I12: =E12/B12*100 -> 118.1479795 | J12: 52631227.4 | K12: 51088186.8 | L12: =K12/F12*100 -> 105.2288682 | M12: 25.17322284 | N12: 48562596.4 | O12: 48562596.5 | P12: 95.05641038 | Q12: 25.86566575
A13: Социальная поддержка отдельных категорий граждан в Ленинградской области | B13: 29382856.2 | C13: 25135008.6 | D13: 14.57543307 | E13: 31612386.9 | F13: 28439434.7 | G13: 113.1467077 | H13: 14.13469156 | I13: 107.5878624 | J13: 31474962.4 | K13: 28718472.1 | L13: 100.9811637 | M13: 15.05429916 | N13: 28862962 | O13: 28862961.9 | P13: 100.503125 | Q13: 15.37314277
A14: Развитие физической культуры и спорта в Ленинградской области | B14: 3322860.7 | C14: 3119853.6 | D14: 1.648312656 | E14: 2437495.9 | F14: 2285011.1 | G14: 73.24097195 | H14: 1.089865591 | I14: 73.35534409 | J14: 2533748.7 | K14: 2507748.7 | L14: 109.7477688 | M14: 1.211877887 | N14: 2201738.7 | O14: 2201738.7 | P14: 87.79742165 | Q14: 1.172701657
A15: Развитие культуры в Ленинградской области | B15: 4642908 | C15: 4372600.8 | D15: 2.303125141 | E15: 4172761.1 | F15: 4140583.1 | G15: 94.69382844 | H15: 1.865746212 | I15: 89.87387 | J15: 3983508.2 | K15: 3974888.4 | L15: 95.99827618 | M15: 1.905289779 | N15: 3753631.2 | O15: 3753631.2 | P15: 94.43362485 | Q15: 1.99927881
A16: Формирование городской среды и обеспечение качественным жильем граждан на территории Ленинградской области | B16: 13410352.5 | C16: 11432209.1 | D16: 6.652236053 | E16: 9280275.9 | F16: 8104048.2 | G16: 70.88785841 | H16: 4.149444263 | I16: 69.20232634 | J16: 4548491.3 | K16: 4503396.7 | L16: 55.56971761 | M16: 2.175518048 | N16: 2462774.8 | O16: 2462774.8 | P16: 54.68704989 | Q16: 1.311736079
A17: Обеспечение устойчивого функционирования и развития коммунальной и инженерной инфраструктуры и повышение энергоэффективности в Ленинградской области | B17: 9664992.2 | C17: 8832720.8 | D17: 4.794341503 | E17: 12674438.9 | F17: 12242578.8 | G17: 138.604843 | H17: 5.667059724 | I17: 131.1376009 | J17: 10949467.3 | K17: 10949467.3 | L17: 89.43758892 | M17: 5.237069207 | N17: 10750606.5 | O17: 10750606.5 | P17: 98.18383128 | Q17: 5.72604463
A18: Безопасность Ленинградской области | B18: 3512860 | C18: 3512860 | D18: 1.742562244 | E18: 4148327.8 | F18: 4148327.8 | G18: 118.0897559 | H18: 1.85482147 | I18: 118.0897559 | J18: 3332056.1 | K18: 3332056.1 | L18: 80.32287371 | M18: 1.593703869 | N18: 3332056.1 | O18: 3332056.1 | P18: 100 | Q18: 1.774737261
A19: Охрана окружающей среды Ленинградской области | B19: 2637298.1 | C19: 2146570.7 | D19: 1.308237759 | E19: 2850037.5 | F19: 2330173.6 | G19: 108.5533125 | H19: 1.274323294 | I19: 108.0665663 | J19: 2773192.2 | K19: 2266946.1 | L19: 97.28657556 | M19: 1.326402379 | N19: 2146679.7 | O19: 2146679.7 | P19: 94.69478344 | Q19: 1.143375843
A20: Цифровое развитие Ленинградской области | B20: 3687570.6 | C20: 3683353.2 | D20: 1.829227837 | E20: 4470515.8 | F20: 4468464 | G20: 121.3151104 | H20: 1.998879811 | I20: =E20/B20*100 -> 121.2320057 | J20: 4751206.1 | K20: 4749078.5 | L20: 106.2798872 | M20: 2.272475407 | N20: 4633910.1 | O20: 4633910.1 | P20: 97.57493164 | Q20: 2.468137592
A21: Стимулирование экономической активности Ленинградской области | B21: 2775838.5 | C21: 2466746.7 | D21: 1.376961042 | E21: 2286260.5 | F21: 2101001 | G21: 85.1729527 | H21: 1.022244448 | I21: 82.36287882 | J21: 1580182.6 | K21: 1579533.2 | L21: 75.18003085 | M21: 0.7557925339 | N21: 1509570.2 | O21: 1509570.2 | P21: 95.57065341 | Q21: 0.804035227
A22: Развитие транспортной системы Ленинградской области | B22: 23099472.5 | C22: 18966886.7 | D22: 11.45854621 | E22: 23292624.6 | F22: 19879613.6 | G22: 104.8122125 | H22: 10.41471704 | I22: 100.8361754 | J22: 23339737.2 | K22: 17367064.5 | L22: 87.36117738 | M22: 11.16326627 | N22: 16417556.4 | O22: 16417556.4 | P22: 94.53270816 | Q22: 8.744405319
A23: Развитие сельского хозяйства Ленинградской области | B23: 5685887.5 | C23: 4787550 | D23: 2.820497509 | E23: 6102773.3 | F23: 5226352 | G23: 109.1654813 | H23: 2.728703104 | I23: 107.3319389 | J23: 6006872.7 | K23: 5206036.9 | L23: 99.61129484 | M23: 2.873053746 | N23: 5224930.1 | O23: 5224930.1 | P23: 100.3629095 | Q23: 2.782929776
A24: Управление государственными финансами и государственным долгом Ленинградской области | B24: 7375762.2 | C24: 7375762.2 | D24: 3.658763722 | E24: 9080066.9 | F24: 9080066.9 | G24: 123.1068282 | H24: 4.059925794 | I24: 123.1068282 | J24: 8407929.9 | K24: 8407929.9 | L24: 92.59766467 | M24: 4.021466028 | N24: 8564363 | O24: 8564363 | P24: 101.8605424 | Q24: 4.561596108
A25: Устойчивое общественное развитие в Ленинградской области | B25: 2241298.3 | C25: 2202821 | D25: 1.111801152 | E25: 2415526.5 | F25: 2410492.7 | G25: 109.4275341 | H25: 1.080042521 | I25: 107.7735391 | J25: 1234508.7 | K25: 1234508.7 | L25: 51.21395721 | M25: 0.5904586334 | N25: 1218678.6 | O25: 1218678.6 | P25: 98.71770041 | Q25: 0.6490990116
A26: Содействие занятости населения Ленинградской области | B26: 919545.5 | C26: 520199.5 | D26: 0.45614265 | E26: 942859.2 | F26: 574194.9 | G26: 110.3797485 | H26: 0.4215760114 | I26: 102.5353503 | J26: 946836.6 | K26: 570867.7 | L26: 99.42054518 | M26: 0.4528666707 | N26: 570924.2 | O26: 570924.2 | P26: 100.0098972 | Q26: 0.304088653
A27: Развитие внутреннего и въездного туризма в Ленинградской области | B27: 391042.8 | C27: 241530.5 | D27: 0.193977676 | E27: 216153.6 | F27: 216153.6 | G27: 89.49329381 | H27: 0.09664769939 | I27: 55.27619995 | J27: 176050.9 | K27: 176050.9 | L27: 81.44712834 | M27: 0.08420416464 | N27: 176050.9 | O27: 176050.9 | P27: 100 | Q27: 0.09376915717
A28: Комплексное развитие сельских территорий Ленинградской области | B28: 1436081.6 | C28: 1317740.7 | D28: 0.7123715647 | E28: 1663795.5 | F28: 1209708.4 | G28: 91.80170272 | H28: 0.7439247245 | I28: 115.8566129 | J28: 1043249.8 | K28: 915523.5 | L28: 75.68133775 | M28: 0.4989805671 | N28: 528550.9 | O28: 528550.9 | P28: 57.73209535 | Q28: 0.2815195629
A29: Расходы на непрограммную деятельность | B29: 16607080 | C29: =5814303.8+8370918.5 -> 14185222.3 | D29: =B29/$B$8*100 -> 8.237980046 | E29: 24388085.7 | F29: 23706575.9 | G29: 167.1216383 | H29: 10.90452519 | I29: 146.853545 | J29: 17639220.1 | K29: 16951745.7 | L29: 71.50651267 | M29: 8.4367407 | N29: =6387861.2+12435925.1+0.1 -> 18823786.4 | O29: =6387861.2+12435925.1+0.1 -> 18823786.4 | P29: 111.0433505 | Q29: 10.02602421
A30: Условно утвержденные расходы | J30: 10398129.2 | K30: 10398129.2 | N30: 10963985.9 | O30: 10963985.9
A31: Всего | B31: =B8+B30 -> 201591651.2 | C31: =C8+C30 -> 181057475.6 | E31: =E8+E30 -> 223651055.7 | F31: =F8+F30 -> 207769422.9 | G31: =F31/C31*100 -> 114.7532971 | I31: =E31/B31*100 -> 110.9426181 | J31: =J8+J30 -> 219474367.6 | K31: =K8+K30 -> 204439694.5 | L31: =K31/F31*100 -> 98.39739248 | N31: =N8+N30 -> 198713247.3 | O31: =O8+O30 -> 198713247.3 | P31: =O31/K31*100 -> 97.19895531
